bitfinex/quotes_ETHUSD_20260217
["timestamp","ask_amount","ask_price","bid_price","bid_amount"]
[1771318499411,0.0011,1979.1,1978.6,1.26351966]
[1771318500916,0.0011,1979.1,1978.7,4.32945532]
[1771318501111,0.0011,1979.1,1978.8,0.48945532]
[1771318502143,0.0011,1979.1,1978.7,3.84]
[1771318502358,0.48807902,1979.1,1978.7,3.84]
[1771318502545,0.48807902,1979.1,1978.3,3.841]
[1771318502745,0.48807902,1979.1,1978.4,1.26359929]
[1771318502945,1.75133536,1979.1,1978.4,1.26359929]
[1771318503121,0.48697902,1979.0,1978.4,1.26359929]
[1771318504961,0.48697902,1978.9,1978.4,1.26359929]
[1771318505167,0.48697902,1978.9,1978.3,3.841]
[1771318506845,0.48697902,1978.9,1978.3,5.10469371]
[1771318507059,0.48697902,1978.8,1978.3,5.10469371]
[1771318507364,0.48697902,1978.8,1978.3,1.26469371]
[1771318507859,0.48697902,1978.8,1978.3,0.001]
[1771318508045,0.48697902,1978.8,1978.3,1.26470535]
[1771318508646,0.48697902,1978.8,1978.3,0.001]
[1771318509572,0.48697902,1978.8,1978.3,1.26469565]
[1771318510564,0.48697902,1979.0,1978.3,1.75415097]
[1771318510774,1.75130151,1979.1,1978.4,0.49045532]
[1771318510974,0.48807902,1978.9,1978.4,0.001]
[1771318511460,0.0011,1978.9,1978.5,1.26358352]
[1771318513069,0.0011,1978.9,1978.5,5.10358352]
[1771318514880,0.0011,1978.9,1978.6,4.33390833]
[1771318516089,0.0011,1978.9,1978.7,1.2634558]
[1771318519296,0.0011,1978.9,1978.7,1.75736413]
[1771318524208,0.0011,1978.9,1978.7,1.2634558]
[1771318524503,0.0011,1978.9,1978.6,3.84]
[1771318524504,0.46891788,1978.9,1978.6,3.84]
[1771318524878,0.46891788,1978.9,1978.4,6.23260004]
[1771318525406,0.46891788,1978.9,1978.8,0.001]
[1771318525702,0.46891788,1978.9,1978.5,0.001]
[1771318526601,0.0011,1978.9,1978.5,0.001]
[1771318527806,0.0011,1978.9,1978.5,0.49490833]
[1771318528509,0.0011,1978.9,1978.5,1.26453269]
[1771318530820,0.0011,1978.9,1978.5,5.10453269]
[1771318533324,0.0011,1978.9,1978.5,0.001]
[1771318533325,0.46781788,1978.8,1978.5,0.001]
[1771318533623,0.46781788,1978.6,1978.3,0.001]
[1771318533797,0.46781788,1978.8,1978.3,1.26470749]
[1771318535019,0.46781788,1978.7,1978.3,0.001]
[1771318536129,2.01944079,1978.8,1978.3,0.001]
[1771318536800,2.48725867,1978.8,1978.3,0.001]
[1771318537197,1.73125867,1978.8,1978.3,0.001]
[1771318537397,2.48725867,1978.8,1978.3,0.001]
[1771318538127,2.48725867,1978.8,1978.4,0.001]
[1771318538911,0.46781788,1978.7,1978.4,0.001]
[1771318540332,1.73128229,1978.7,1978.4,0.001]
[1771318540499,7.20262926,1978.7,1978.4,0.001]
[1771318541002,1.73128229,1978.7,1978.4,0.001]
[1771318543133,0.46781788,1978.6,1978.4,0.001]
[1771318543835,0.76,1978.7,1978.4,0.001]
[1771318544935,6.73582538,1978.9,1978.4,0.001]
[1771318545129,0.76,1978.8,1978.4,0.001]
[1771318546236,2.02339578,1978.8,1978.4,0.001]
[1771318546605,2.47729063,1978.8,1978.4,0.001]
[1771318549834,0.0011,1978.7,1978.4,0.001]
[1771318561236,0.45898991,1978.7,1978.3,0.001]
[1771318561436,0.45898991,1978.7,1978.1,0.001]
[1771318561437,5.92923688,1978.5,1978.1,0.001]
[1771318561618,6.69823688,1978.5,1978.1,0.002]
[1771318562250,0.0011,1978.6,1978.1,1.26582589]
[1771318562471,0.769,1978.5,1978.4,0.001]
[1771318563016,1.22798991,1978.6,1978.4,0.001]
[1771318563320,0.0011,1978.6,1978.4,0.002]
[1771318563757,0.0011,1978.6,1978.4,0.48638549]
[1771318565162,0.0011,1978.6,1978.5,0.001]
[1771318566546,0.0011,1978.6,1978.4,1.74903132]
[1771318566742,0.0011,1978.6,1978.5,0.001]
[1771318567581,0.0011,1978.9,1978.5,0.48438549]
[1771318569077,0.0011,1978.9,1978.4,1.13]
[1771318569078,1.26444922,1978.9,1978.4,1.13]
[1771318569283,1.72233913,1978.9,1978.4,2.39364684]
[1771318569771,1.72233913,1978.9,1978.4,2.39364436]
[1771318569958,0.45898991,1978.9,1978.4,2.39364436]
[1771318570350,0.0011,1978.9,1978.4,2.87802985]
[1771318570677,0.0011,1978.9,1978.5,0.48438549]
[1771318571280,1.26444959,1978.9,1978.4,2.39364436]
[1771318571481,0.0011,1978.9,1978.4,2.87802985]
[1771318572855,0.0011,1978.9,1978.5,0.48438549]
[1771318574594,0.0011,1978.9,1978.6,1.26351966]
[1771318574774,0.0011,1978.8,1978.6,1.26351966]
[1771318575091,0.0011,1978.8,1978.5,1.74891913]
[1771318577074,0.0011,1978.8,1978.5,1.26453364]
[1771318578002,0.0011,1978.8,1978.5,0.001]
[1771318578202,0.49871919,1978.8,1978.5,0.001]
[1771318579277,1.76216656,1978.8,1978.5,0.001]
[1771318579891,7.23369559,1978.8,1978.5,0.001]
[1771318580092,7.23369559,1978.8,1978.2,0.48056235]
[1771318580093,0.49761919,1978.7,1978.2,3.841]
[1771318582518,1.26351966,1978.6,1978.2,3.841]
[1771318583996,1.76113885,1978.6,1978.2,3.841]
[1771318584198,1.76113885,1978.6,1978.2,0.001]
[1771318584924,1.7449636,1978.6,1978.2,0.001]
[1771318585402,0.773,1978.5,1978.2,0.001]
[1771318585592,1.27061919,1978.5,1978.0,3.84]
[1771318585790,1.27061919,1978.5,1977.9,0.47956235]
[1771318586512,0.49761919,1978.4,1978.3,0.001]
[1771318586712,6.71997344,1978.6,1977.9,0.47956235]
[1771318586886,6.71997344,1978.6,1977.8,1.26400144]
[1771318586887,0.773,1978.4,1978.2,0.001]
[1771318587209,2.0366753,1978.4,1978.2,0.001]
[1771318589626,0.776,1978.3,1978.2,0.001]
[1771318594095,1.26358352,1978.5,1978.2,0.001]
[1771318594300,0.779,1978.4,1978.2,0.001]
[1771318596643,2.04269924,1978.4,1978.2,0.001]
[1771318596804,0.49490039,1978.3,1978.0,0.001]
[1771318599842,1.75861165,1978.3,1978.2,0.001]
[1771318600131,1.75861165,1978.3,1978.0,0.001]
[1771318600333,1.26371126,1978.3,1978.0,0.001]
[1771318601834,1.26371126,1978.3,1977.9,3.84]
[1771318602038,5.96642942,1978.2,1977.6,0.47914062]
[1771318602334,0.49490039,1978.0,1977.6,0.001]
[1771318602537,0.786,1978.1,1977.6,1.74327621]
[1771318602706,0.786,1978.1,1977.7,0.47814062]
[1771318604359,0.786,1978.1,1977.6,0.48265393]
[1771318606768,0.786,1978.1,1977.7,1.74574858]
[1771318608565,2.04984176,1978.1,1977.7,0.48165393]
[1771318609075,0.786,1978.1,1977.7,1.74574791]
[1771318609232,0.786,1978.1,1977.8,0.48165393]
[1771318610249,0.787,1978.2,1977.8,0.48165393]
[1771318610451,1.26373375,1978.3,1977.8,0.48165393]
[1771318610631,0.787,1978.2,1977.8,0.48165393]
[1771318611358,5.05489461,1978.3,1977.8,0.48265393]
[1771318611558,0.787,1978.2,1977.8,0.48265393]
[1771318611959,5.05599461,1978.3,1977.8,0.48265393]
[1771318612145,0.788,1978.2,1977.8,0.48265393]
[1771318613547,1.26378941,1978.2,1977.8,0.48265393]
[1771318613750,2.05178941,1978.2,1977.8,0.48265393]
[1771318614462,0.0011,1978.3,1977.9,0.47252067]
[1771318614648,1.26481386,1978.3,1977.9,0.47252067]
[1771318618367,0.0011,1978.3,1978.0,0.47252067]
[1771318618859,0.0011,1978.3,1978.1,1.73633708]
[1771318619065,0.0011,1978.3,1978.2,0.47252067]
[1771318621248,0.0011,1978.3,1978.2,1.73629581]
[1771318621448,0.0011,1978.3,1978.2,0.47252067]
[1771318621658,0.0011,1978.3,1978.2,1.73629581]
[1771318622646,0.0011,1978.3,1978.2,0.47252067]
[1771318623372,0.0011,1978.3,1978.2,1.73629581]
[1771318626267,0.0011,1978.5,1978.3,0.47252067]
[1771318627587,0.0011,1978.5,1978.2,5.09522255]
[1771318628173,0.0011,1978.5,1978.2,5.56774322]
[1771318631194,0.0011,1978.5,1978.2,5.09522255]
[1771318631389,0.0011,1978.5,1978.3,0.47252067]
[1771318631795,0.0011,1978.5,1978.3,4.30402067]
[1771318632089,0.0011,1978.5,1978.3,5.56768056]
[1771318636113,0.0011,1978.5,1978.3,4.30402067]
[1771318636411,0.0011,1978.5,1978.3,5.56773089]
[1771318636902,0.0011,1978.5,1978.4,0.001]
[1771318637218,0.0011,1978.5,1978.4,4.32264889]
[1771318637689,0.0011,1978.5,1978.4,3.7725]
[1771318638482,0.0011,1978.5,1978.3,0.001]
[1771318643635,0.0011,1978.5,1978.3,0.49114889]
[1771318646041,0.0011,1978.5,1978.3,1.75484702]
[1771318646727,0.0011,1978.5,1978.3,0.49114889]
[1771318647054,0.0011,1978.5,1978.3,0.001]
[1771318648446,0.0011,1978.5,1978.3,0.49114889]
[1771318649016,0.0011,1978.5,1978.4,0.001]
[1771318650655,0.0011,1978.5,1978.4,1.26464739]
[1771318650953,0.0011,1978.5,1978.4,0.001]
[1771318651921,0.0011,1978.5,1978.3,0.001]
[1771318660577,0.0011,1978.5,1978.4,0.001]
[1771318691546,0.0011,1978.7,1978.5,0.49573743]
[1771318693007,0.0011,1978.9,1978.6,0.49573743]
[1771318693510,0.0011,1978.9,1978.8,0.49573743]
[1771318696910,0.0011,1978.9,1978.8,1.75912938]
[1771318697108,0.0011,1978.9,1978.8,0.49573743]
[1771318698238,0.0011,1978.9,1978.8,1.75912938]
[1771318699646,0.0011,1978.9,1978.8,0.49573743]
[1771318700945,0.0011,1978.9,1978.8,1.75912938]
[1771318701444,0.0011,1979.1,1978.9,0.46683626]
[1771318702949,5.95308019,1979.0,1978.5,0.001]
[1771318703545,1.74372966,1979.0,1978.5,0.001]
[1771318704315,1.2643297,1979.1,1978.5,0.46783626]
[1771318705148,0.0011,1979.1,1978.5,0.46783626]
[1771318706224,0.0011,1979.1,1978.6,0.46683626]
[1771318709351,0.0011,1979.1,1978.6,1.7313365]
[1771318709551,0.0011,1979.0,1978.7,0.46683626]
[1771318714054,0.0011,1979.0,1978.7,1.73024985]
[1771318715558,0.0011,1979.0,1978.8,0.46683626]
[1771318715755,0.0011,1979.0,1978.7,1.26341359]
[1771318716462,0.0011,1979.0,1978.7,1.73024985]
[1771318716964,0.0011,1979.2,1978.8,0.46683626]
[1771318717662,0.0011,1979.2,1978.8,4.30683626]
[1771318718151,0.0011,1979.2,1978.9,1.26332811]
[1771318718851,0.0011,1979.2,1979.0,0.46683626]
[1771318720161,0.0011,1979.2,1979.0,1.73005204]
[1771318720373,0.0011,1979.2,1979.1,0.46683626]
[1771318722342,0.0011,1979.2,1979.1,1.7300367]
[1771318722661,0.0011,1979.4,1979.2,0.46683626]
[1771318724257,0.0011,1979.4,1979.2,1.72991326]
[1771318725877,0.0011,1979.4,1979.0,5.10325616]
[1771318726572,0.0011,1979.4,1979.0,1.76068824]
[1771318728474,0.0011,1979.4,1979.1,0.49743208]
[1771318729063,0.0011,1979.4,1979.1,1.76062345]
[1771318730666,0.0011,1979.4,1979.2,0.47475061]
[1771318732196,0.0011,1979.4,1979.2,1.7378425]
[1771318733488,0.0011,1979.7,1979.3,0.47475061]
[1771318734198,0.0011,1979.4,1979.3,0.47475061]
[1771318734397,0.0011,1979.4,1979.3,1.73782341]
[1771318737170,0.0011,1979.6,1979.4,0.47475061]
[1771318737503,0.4914605,1980.0,1979.4,0.47475061]
[1771318738678,0.0011,1980.0,1979.5,1.73769579]
[1771318739086,0.0011,1980.0,1979.5,1.26294518]
[1771318739293,0.4914605,1980.0,1979.5,1.26294518]
[1771318740694,0.0011,1980.0,1979.5,1.73769579]
[1771318741490,0.0011,1980.0,1979.6,0.47475061]
[1771318743117,0.0011,1980.0,1979.7,1.26281759]
[1771318744121,0.0011,1980.0,1979.6,1.73757875]
[1771318746428,0.0011,1979.9,1979.6,1.73757875]
[1771318746730,0.0011,1979.9,1979.5,1.26290081]
[1771318746897,0.0011,1979.9,1979.3,1.2640728]
[1771318746898,0.4914605,1979.9,1979.3,1.2640728]
[1771318747091,0.4914605,1979.9,1979.3,0.001]
[1771318748517,0.4903605,1979.7,1979.3,0.001]
[1771318750805,0.4914605,1979.9,1979.3,1.2640728]
[1771318751409,0.4914605,1979.9,1979.3,0.001]
[1771318754149,1.26275381,1979.8,1979.3,0.001]
[1771318754814,1.74783574,1979.8,1979.3,0.001]
[1771318758250,2.53583574,1979.8,1979.3,0.001]
[1771318758850,2.53583574,1979.8,1979.4,0.001]
[1771318759051,2.53693574,1979.8,1979.4,0.001]
[1771318759437,2.05186157,1979.8,1979.4,0.001]
[1771318759946,0.7901,1979.8,1979.4,0.46609415]
[1771318760149,2.05285971,1979.8,1979.4,0.46609415]
[1771318760649,2.05285971,1979.8,1979.4,0.001]
[1771318764863,0.0011,1979.8,1979.4,0.001]
[1771318765464,0.48618193,1979.8,1979.4,0.001]
[1771318765861,0.0011,1979.8,1979.4,0.001]
[1771318769868,0.0011,1979.8,1979.4,0.46609415]
[1771318770862,0.0011,1979.8,1979.5,0.001]
[1771318771183,0.0011,1979.7,1979.5,0.001]
[1771318775068,0.0011,1979.7,1979.5,0.46609415]
[1771318779380,0.0011,1979.7,1979.5,0.001]
[1771318781189,1.74899952,1979.7,1979.5,0.001]
[1771318781599,1.26391759,1979.7,1979.5,0.001]
[1771318782283,0.0011,1979.7,1979.5,0.001]
[1771318782684,0.48618193,1979.7,1979.5,0.001]
[1771318783369,1.26288139,1979.6,1979.5,0.001]
[1771318783986,2.06298139,1979.6,1979.5,0.001]
[1771318785696,0.8001,1979.6,1979.5,0.001]
[1771318789713,0.0011,1979.6,1979.5,0.4823265]
[1771318790325,0.0011,1979.6,1979.5,0.001]
[1771318791581,0.4546159,1979.6,1979.3,0.001]
[1771318792705,0.804,1979.5,1979.3,0.001]
[1771318796218,0.804,1979.5,1979.4,0.001]
[1771318796403,0.8051,1979.5,1979.4,0.001]
[1771318797212,0.0011,1979.5,1979.4,0.001]
[1771318798517,0.0011,1979.5,1979.3,0.001]
[1771318798716,0.8081,1979.5,1979.3,0.001]
[1771318800315,0.0011,1979.5,1979.3,0.001]
[1771318800617,0.0011,1979.5,1979.3,0.4802587]
[1771318802529,0.0011,1979.5,1979.3,1.743329]
[1771318802827,0.0011,1979.5,1979.4,0.4792587]
[1771318807938,0.0011,1979.5,1979.4,0.4802587]
[1771318808438,0.0011,1979.5,1979.4,0.001]
[1771318811038,0.0011,1979.5,1979.2,0.001]
[1771318811242,0.4535159,1979.3,1978.8,0.001]
[1771318812232,0.4535159,1979.3,1978.8,1.26439184]
[1771318812531,1.2630901,1979.3,1978.8,0.4802587]
[1771318813220,2.0710516,1979.4,1978.8,0.4802587]
[1771318814535,0.0011,1979.5,1979.0,0.46789533]
[1771318816510,0.0011,1979.5,1979.2,0.46789533]
[1771318818359,0.0011,1979.5,1978.9,3.84]
[1771318818360,0.49832194,1979.5,1978.9,3.84]
[1771318818527,1.76023093,1979.4,1978.9,3.78]
[1771318819247,1.76023093,1979.4,1978.9,5.04331378]
[1771318819540,1.76023093,1979.4,1979.3,0.001]
[1771318819714,2.57033093,1979.4,1979.3,0.001]
[1771318823227,0.0011,1979.4,1979.3,0.001]
[1771318824939,0.0011,1979.7,1979.5,0.46789533]
[1771318825145,0.0011,1979.9,1979.4,0.46789533]
[1771318825432,0.0011,1979.9,1979.6,0.46789533]
[1771318825633,0.0011,1979.9,1979.6,1.73074435]
[1771318825853,0.813,1980.3,1979.7,0.46789533]
[1771318826151,0.0045,1980.2,1979.7,0.46789533]
[1771318826351,0.0045,1980.2,1979.8,0.46789533]
[1771318826521,0.813,1980.4,1979.8,0.46789533]
[1771318826718,0.8175,1980.4,1979.8,0.46789533]
[1771318827141,0.0045,1980.4,1979.8,0.46789533]
[1771318827349,7.34992386,1982.1,1980.0,0.46789533]
[1771318827350,1.26210298,1980.9,1980.0,0.46789533]
[1771318827525,0.50172194,1980.8,1980.0,0.46789533]
[1771318827720,0.49722194,1980.5,1979.8,1.73062254]
[1771318828252,0.0045,1980.4,1979.8,0.46789533]
[1771318830847,0.0045,1980.4,1979.9,1.26269003]
[1771318831065,0.0045,1980.4,1980.0,0.46789533]
[1771318832055,0.0056,1980.3,1980.0,0.46789533]
[1771318832358,0.0011,1980.4,1980.0,0.46789533]
[1771318833457,0.0011,1980.4,1980.1,1.73045782]
[1771318833828,0.0011,1980.4,1980.2,0.46789533]
[1771318836563,0.0011,1980.4,1980.0,0.46789533]
[1771318836859,0.0056,1980.4,1980.0,0.46789533]
[1771318838438,0.0011,1980.4,1980.2,0.46789533]
[1771318840261,0.0056,1980.4,1980.2,0.46789533]
[1771318840631,0.0056,1980.4,1980.1,5.04256249]
[1771318840832,0.0056,1980.4,1980.1,3.78]
[1771318841033,0.0056,1980.4,1979.5,5.05174093]
[1771318841034,0.49832194,1980.4,1979.6,5.51075495]
[1771318841259,0.49722194,1980.2,1979.4,2.87387871]
[1771318841701,0.49722194,1980.2,1979.5,0.46789533]
[1771318841702,0.0045,1980.1,1979.5,0.46789533]
[1771318842649,0.50172194,1980.1,1979.5,0.46789533]
[1771318842848,0.50172194,1980.1,1979.5,1.73083875]
[1771318843071,0.50172194,1980.1,1979.6,0.46789533]
[1771318843072,0.0045,1980.1,1979.6,0.46789533]
[1771318843436,0.0045,1980.1,1979.5,1.26294342]
[1771318843974,0.0045,1980.1,1979.6,0.46789533]
[1771318844852,0.0045,1980.1,1980.0,0.001]
[1771318845043,0.0045,1980.1,1979.8,0.001]
[1771318847361,2.52601525,1980.2,1979.8,0.001]
[1771318847542,0.0045,1980.0,1979.8,0.001]
[1771318849788,0.0011,1980.3,1979.8,0.49832898]
[1771318849966,0.0045,1980.2,1979.8,0.49832898]
[1771318850975,0.0011,1980.3,1979.8,0.49832898]
[1771318850976,0.0011,1980.3,1980.0,0.4650785]
[1771318851175,0.0056,1980.3,1980.0,0.4650785]
[1771318851869,0.0011,1980.3,1980.0,0.4650785]
[1771318853179,0.0011,1980.3,1980.1,1.26256249]
[1771318853499,0.0011,1980.3,1980.1,0.4650785]
[1771318855597,0.0011,1980.3,1980.2,1.26249873]
[1771318855896,0.0011,1980.3,1980.2,1.72757723]
[1771318862182,0.0011,1980.4,1980.3,0.4650785]
[1771318862510,0.0045,1980.4,1980.3,0.4650785]
[1771318862715,0.0011,1980.6,1980.3,0.4650785]
[1771318863308,0.0011,1980.6,1980.2,1.26249873]
[1771318863608,0.47224843,1980.6,1980.1,5.04351459]
[1771318864219,0.0011,1980.6,1980.1,5.50859309]
[1771318864709,0.47114843,1980.5,1980.1,3.781]
[1771318866081,0.47114843,1980.5,1980.1,0.001]
[1771318866812,1.73351966,1980.4,1980.1,0.001]
[1771318868019,0.47114843,1980.3,1979.8,0.001]
[1771318868613,1.26249873,1980.2,1980.1,0.001]
[1771318868820,1.73364716,1980.2,1979.5,1.72797319]
[1771318869228,1.73364716,1980.2,1980.0,0.001]
[1771318873506,1.26249873,1980.2,1980.0,0.001]
[1771318873699,1.73364716,1980.2,1980.0,0.001]
[1771318874422,1.26249873,1980.2,1980.0,0.001]
[1771318876026,0.8081,1980.3,1980.0,0.001]
[1771318876237,0.0011,1980.3,1980.0,0.001]
[1771318876706,0.0011,1980.3,1980.0,0.47499778]
[1771318876905,1.2634052,1980.6,1980.0,0.001]
[1771318877110,0.0022,1980.5,1980.0,0.47499778]
[1771318877409,2.541281,1980.6,1980.0,0.47499778]
[1771318877609,0.0022,1980.5,1980.0,0.47499778]
[1771318879027,2.541281,1980.6,1980.0,0.47499778]
[1771318879250,0.0022,1980.5,1980.0,0.47499778]
[1771318881022,0.0022,1980.5,1980.1,0.001]
[1771318881329,0.0011,1980.4,1980.1,0.001]
[1771318883613,0.0011,1980.4,1980.1,0.47499778]
[1771318884637,0.0011,1980.4,1980.2,1.26249873]
[1771318884806,0.0011,1980.4,1980.2,1.73649651]
[1771318885004,0.0033,1980.4,1980.1,0.001]
[1771318885241,0.4721758,1980.4,1980.1,0.001]
[1771318885404,0.4699758,1980.4,1980.1,0.001]
[1771318886141,0.0011,1980.4,1980.1,0.001]
[1771318886311,0.4699758,1980.4,1980.1,0.001]
[1771318886708,0.0022,1980.3,1980.1,0.001]
[1771318888442,0.0011,1980.4,1980.1,0.47499778]
[1771318889310,0.0011,1980.4,1980.1,1.73752193]
[1771318890220,0.0011,1980.4,1980.2,0.47399778]
[1771318890734,0.0011,1980.4,1980.1,1.26356058]
[1771318890941,0.0011,1980.4,1980.1,1.73755836]
[1771318891638,0.0011,1980.4,1980.2,0.47399778]
[1771318892032,0.0033,1980.4,1980.2,0.47399778]
[1771318892422,0.0033,1980.4,1980.1,0.001]
[1771318892615,0.0033,1980.4,1980.1,1.7375538]
[1771318893722,0.0033,1980.4,1980.2,0.001]
[1771318894044,0.0011,1980.3,1980.2,0.47499778]
[1771318894416,0.0011,1980.6,1980.2,0.47499778]
[1771318896345,0.4699758,1980.6,1980.1,0.001]
[1771318896542,0.4688758,1980.4,1980.0,0.001]
[1771318896914,5.93278217,1980.1,1979.8,0.001]
[1771318897139,5.93278217,1980.1,1979.3,0.47499778]
[1771318897140,5.93278217,1980.1,1979.3,1.73806586]
[1771318897713,0.4688758,1980.1,1979.4,0.47399778]
[1771318897910,0.4688758,1980.3,1979.4,0.47399778]
[1771318898441,1.26249873,1980.2,1979.6,0.47399778]
[1771318898626,5.04962482,1980.4,1979.6,0.47399778]
[1771318898943,0.81,1980.3,1979.6,0.47399778]
[1771318900121,1.2788758,1980.3,1979.5,1.26294518]
[1771318900320,0.4688758,1980.2,1979.5,1.73694296]
[1771318900841,0.81,1980.3,1979.6,0.47399778]
[1771318901026,1.26255144,1980.2,1979.6,0.47399778]
[1771318902347,2.07247716,1980.3,1979.6,0.47399778]
[1771318903219,5.86234671,1980.5,1979.8,0.47399778]
[1771318903419,5.04934671,1980.5,1979.8,0.47399778]
[1771318904016,1.26230749,1980.5,1979.8,0.47399778]
[1771318905130,2.0763888,1980.6,1980.0,0.47606806]
[1771318905319,1.2633888,1980.6,1980.0,0.47606806]
[1771318906260,0.0011,1980.4,1980.0,0.47606806]
[1771318907129,0.0011,1980.6,1980.0,0.47606806]
[1771318907130,0.0011,1980.6,1980.1,0.47606806]
[1771318907826,2.1246485,1981.4,1980.1,0.47606806]
[1771318908231,0.45391438,1981.3,1980.1,0.47606806]
[1771318909358,1.7156485,1981.5,1980.3,0.47606806]
[1771318909527,5.86006566,1981.4,1980.3,0.47606806]
[1771318910638,0.46234302,1981.3,1980.3,0.47606806]
[1771318911468,0.46234302,1981.1,1980.3,1.73846745]
[1771318911773,0.46234302,1981.1,1980.4,0.46051464]
[1771318913444,1.26186149,1981.2,1980.4,0.46051464]
[1771318913662,1.26186149,1981.2,1980.6,0.46051464]
[1771318917549,1.26186149,1981.2,1980.6,1.7227541]
[1771318917739,2.07586149,1981.2,1980.6,0.46051464]
[1771318918845,2.07586149,1981.2,1980.6,1.72275821]
[1771318919165,2.07586149,1981.2,1980.6,0.46051464]
[1771318919366,0.0011,1981.1,1980.6,0.46051464]
[1771318919742,0.0011,1981.1,1980.6,1.72275352]
[1771318921071,0.0011,1981.1,1980.6,0.46051464]
[1771318921277,0.0011,1981.1,1980.7,0.46051464]
[1771318921665,0.0011,1981.1,1980.8,1.72263095]
[1771318921968,0.0011,1981.1,1980.8,0.46051464]
[1771318924484,0.0011,1981.1,1980.8,1.7226202]
[1771318924783,0.0011,1981.1,1980.8,1.26210556]
[1771318924989,0.0011,1981.1,1980.9,0.46051464]
[1771318925158,0.0011,1981.1,1980.7,1.72265762]
[1771318925360,0.0011,1981.1,1980.7,5.50265762]
[1771318925562,0.0011,1981.1,1980.8,0.46051464]
[1771318925969,0.0011,1981.1,1980.7,3.78]
[1771318926570,0.0011,1981.1,1980.7,5.04217355]
[1771318926854,0.0011,1981.1,1980.7,4.24051464]
[1771318927092,0.0011,1981.1,1980.7,3.78]
[1771318927590,0.46344302,1981.1,1980.7,3.78]
[1771318928390,1.26198889,1981.0,1980.7,3.78]
[1771318929263,0.46234302,1980.9,1980.7,3.78]
[1771318930363,1.72445028,1980.9,1980.7,3.78]
[1771318931061,1.26210726,1980.9,1980.7,3.78]
[1771318931368,1.26210726,1980.9,1980.5,0.001]
[1771318933294,5.04810625,1981.0,1980.8,0.001]
[1771318933498,5.04920625,1981.0,1980.8,0.001]
[1771318934780,0.0011,1981.0,1980.8,0.001]
[1771318934987,0.8161,1981.0,1980.8,0.001]
[1771318935991,2.07811781,1981.0,1980.8,0.001]
[1771318937703,0.8161,1981.0,1980.8,0.001]
[1771318937996,2.07809042,1981.0,1980.8,0.001]
[1771318938993,1.26309042,1981.0,1980.8,0.001]
[1771318939571,0.0011,1981.0,1980.8,0.001]
[1771318940992,0.0011,1981.0,1980.5,0.001]
[1771318940993,0.47077672,1981.0,1980.5,0.001]
[1771318941898,0.46967672,1980.8,1980.4,0.001]
[1771318942084,2.08214782,1980.8,1980.4,0.001]
[1771318942794,2.08214782,1980.8,1980.4,0.46306795]
[1771318944318,2.08214782,1980.8,1980.2,1.37306795]
[1771318944489,2.08214782,1980.8,1980.3,0.46206795]
[1771318945583,5.45989023,1980.7,1980.2,0.001]
[1771318946297,2.55182454,1980.8,1980.2,0.001]
[1771318946603,0.46967672,1980.7,1980.2,0.001]
[1771318946978,0.46967672,1980.7,1980.3,0.001]
[1771318949010,1.26224376,1980.6,1980.3,0.001]
[1771318949329,1.26224376,1980.6,1980.2,0.001]
[1771318949511,6.75556695,1980.5,1980.0,0.001]
[1771318949812,0.46967672,1980.4,1980.0,0.001]
[1771318950778,6.28589023,1980.5,1980.0,0.001]
[1771318950979,1.26237123,1980.4,1980.0,0.001]
[1771318951200,0.827,1980.3,1980.0,0.001]
[1771318951412,0.46967672,1980.6,1980.0,0.001]
[1771318951413,1.26226682,1980.6,1980.0,0.46306795]
[1771318951600,1.26222676,1980.7,1980.0,0.46306795]
[1771318951908,0.827,1980.5,1980.0,0.46306795]
[1771318954009,2.08934886,1980.5,1980.0,0.46306795]
[1771318954909,5.45989023,1980.4,1980.0,0.001]
[1771318955199,2.55902558,1980.5,1980.0,0.001]
[1771318957712,2.08934886,1980.5,1980.0,0.001]
[1771318958717,2.08934886,1980.5,1980.0,0.46306795]
[1771318958913,0.829,1980.5,1980.2,0.46206795]
[1771318959417,2.09131872,1980.5,1980.2,0.46206795]
[1771318959918,0.829,1980.5,1980.2,0.46206795]
[1771318961837,0.0011,1980.7,1980.2,0.46206795]
[1771318962131,0.83,1980.6,1980.2,0.46206795]
[1771318966532,0.83,1980.6,1980.2,1.72456576]
[1771318966735,0.8331,1980.7,1980.2,1.72456576]
[1771318966897,1.96148237,1980.7,1980.2,0.46206795]
[1771318969414,0.69929893,1980.7,1980.2,1.72455821]
[1771318971618,0.0011,1980.6,1980.2,1.72455821]
[1771318974840,0.0011,1980.6,1980.3,0.45192168]
[1771318975710,0.0011,1980.6,1980.2,1.71441194]
[1771318985555,0.0011,1980.6,1980.3,0.001]
[1771318988857,0.0011,1980.6,1980.3,0.45292168]
[1771318990162,0.0011,1980.6,1980.5,0.45192168]
[1771318990346,0.0011,1980.7,1980.5,0.45192168]
[1771318990661,0.0011,1980.9,1980.7,0.45192168]
[1771318992237,0.49837588,1981.6,1980.9,0.45192168]
[1771318992238,2.26201572,1981.6,1980.9,0.45192168]
[1771318992764,1.76001572,1981.6,1980.9,0.45192168]
[1771318993138,0.828,1981.6,1980.9,0.45192168]
[1771318993857,1.32637588,1981.6,1980.9,0.45192168]
[1771318994256,1.26167045,1981.5,1980.9,0.45192168]
[1771318994455,1.26167045,1981.5,1981.0,0.45696597]
[1771318994658,5.87466546,1981.6,1981.0,0.45696597]
[1771318994659,1.26165798,1981.6,1981.0,0.45696597]
[1771318996171,1.74014879,1981.6,1981.0,0.45696597]
[1771318996374,1.74014879,1981.6,1981.0,1.71895416]
[1771318997371,1.74014879,1981.6,1981.0,0.45696597]
[1771318998199,1.74014879,1981.6,1981.0,1.71893902]
[1771318998485,0.0011,1981.4,1981.0,0.45696597]
[1771318998690,0.0011,1981.4,1981.0,1.71894552]
[1771319000086,0.0011,1981.4,1981.1,0.45696597]
[1771319000884,0.0011,1981.4,1981.2,0.45696597]
[1771319002304,0.0011,1981.7,1981.3,0.45696597]
[1771319002655,0.0011,1981.7,1981.5,0.45696597]